bitfinex-derivatives/quotes_BTCF0:USTF0_20250710
["timestamp","ask_amount","ask_price","bid_price","bid_amount"]
[1752158402969,1.49626499,111210.0,111200.0,0.46715]
[1752158403183,1.1905099,111210.0,111200.0,0.5206648]
[1752158403380,1.1905099,111210.0,111200.0,0.7004404]
[1752158403573,1.1884599,111210.0,111200.0,0.7004404]
[1752158408284,1.1884599,111210.0,111200.0,0.6687404]
[1752158408285,1.2208599,111210.0,111200.0,0.6687404]
[1752158411181,1.52866499,111210.0,111200.0,0.4569648]
[1752158411382,1.52866499,111210.0,111200.0,0.4163148]
[1752158411675,1.52866499,111210.0,111200.0,0.3628]
[1752158412285,1.52866499,111210.0,111200.0,0.002]
[1752158413579,0.1799156,111200.0,111190.0,0.4386048]
[1752158413884,0.1797918,111190.0,111180.0,0.51895794]
[1752158414078,1.50486198,111190.0,111180.0,0.51895794]
[1752158414483,1.19910689,111190.0,111180.0,0.51895794]
[1752158414677,0.1797918,111190.0,111180.0,0.71388584]
[1752158414876,1.13522689,111190.0,111180.0,0.38468584]
[1752158415081,1.13522689,111190.0,111180.0,1.05282104]
[1752158415589,1.16662689,111190.0,111180.0,1.05282104]
[1752158415989,1.16662689,111190.0,111180.0,0.87301314]
[1752158416181,1.16662689,111190.0,111180.0,0.84141314]
[1752158416383,1.19872689,111190.0,111180.0,0.84141314]
[1752158416685,1.19872689,111190.0,111180.0,0.9448179]
[1752158417478,1.19872689,111190.0,111180.0,0.9763179]
[1752158417683,1.13522689,111190.0,111180.0,0.9793179]
[1752158417989,0.10529459,111200.0,111190.0,0.2192018]
[1752158418190,0.8292956,111200.0,111190.0,0.6420018]
[1752158418391,0.1797756,111200.0,111190.0,0.6420018]
[1752158418587,0.8292556,111200.0,111190.0,0.6420018]
[1752158418791,1.13501069,111200.0,111190.0,0.6420018]
[1752158418993,0.08243551,111210.0,111200.0,0.1957856]
[1752158419295,1.18529,111210.0,111200.0,0.5799856]
[1752158419499,1.18529,111210.0,111200.0,0.6430856]
[1752158419690,1.18570067,111210.0,111200.0,0.6430856]
[1752158420690,0.19890558,111210.0,111200.0,0.6430856]
[1752158420891,0.84826558,111210.0,111200.0,0.6440856]
[1752158421095,0.01914618,111210.0,111200.0,0.6440856]
[1752158421397,0.66846618,111210.0,111200.0,0.6440856]
[1752158421695,0.84822558,111210.0,111200.0,0.6440856]
[1752158421894,0.66846618,111210.0,111200.0,0.6440856]
[1752158422091,0.01914618,111210.0,111200.0,0.6440856]
[1752158422293,0.66838618,111210.0,111200.0,0.6440856]
[1752158422688,0.84814558,111210.0,111200.0,0.6440856]
[1752158423596,0.8289994,111210.0,111200.0,0.6440856]
[1752158424497,1.13475449,111210.0,111200.0,0.6440856]
[1752158425694,1.13475449,111210.0,111200.0,0.68426407]
[1752158430496,1.13475449,111210.0,111200.0,0.6842829]
[1752158433703,1.13475449,111210.0,111200.0,0.68427385]
[1752158433904,1.13475449,111210.0,111200.0,0.50449825]
[1752158434206,1.16805449,111210.0,111200.0,0.68427385]
[1752158436601,1.47380958,111210.0,111200.0,0.50449825]
[1752158436806,1.47380958,111210.0,111200.0,0.47189825]
[1752158437007,1.50580958,111210.0,111200.0,0.47189825]
[1752158437898,1.50580958,111210.0,111200.0,0.40198825]
[1752158438303,1.50580958,111210.0,111200.0,0.42538825]
[1752158438703,1.50580958,111210.0,111200.0,0.44139825]
[1752158438905,1.50456958,111210.0,111200.0,0.44139825]
[1752158439305,1.19881449,111210.0,111200.0,0.44139825]
[1752158439506,0.8609794,111210.0,111200.0,0.62117385]
[1752158439704,1.16673449,111210.0,111200.0,0.68467385]
[1752158440500,1.16673449,111210.0,111200.0,0.50489825]
[1752158440701,1.16673449,111210.0,111200.0,0.68467385]
[1752158441308,1.16673449,111210.0,111200.0,0.50489825]
[1752158441509,1.16673449,111210.0,111200.0,0.68467385]
[1752158443508,1.16673449,111210.0,111200.0,0.50489825]
[1752158444103,1.16673449,111210.0,111200.0,0.50490691]
[1752158444310,1.19753449,111210.0,111200.0,0.47180691]
[1752158444706,1.19753449,111210.0,111200.0,0.65158251]
[1752158445008,1.16673449,111210.0,111200.0,0.65158332]
[1752158445208,1.16673449,111210.0,111200.0,0.68278332]
[1752158445409,0.51881449,111210.0,111200.0,0.68278332]
[1752158445710,0.8605794,111210.0,111200.0,0.68278332]
[1752158445908,1.16633449,111210.0,111200.0,0.73637921]
[1752158446109,1.16629449,111210.0,111200.0,0.73637921]
[1752158446410,0.8605394,111210.0,111200.0,0.68278332]
[1752158446710,1.16629449,111210.0,111200.0,0.68278332]
[1752158446904,0.51881449,111210.0,111200.0,0.68278332]
[1752158447105,1.13295449,111210.0,111200.0,0.68278332]
[1752158449502,0.8271994,111210.0,111200.0,0.68278332]
[1752158449710,1.13295449,111210.0,111200.0,0.68278332]
[1752158450012,1.13295449,111210.0,111200.0,0.73638419]
[1752158450315,0.95319509,111210.0,111200.0,0.73638419]
[1752158450613,1.13295459,111210.0,111200.0,0.73638419]
[1752158450806,0.95319509,111210.0,111200.0,0.73638419]
[1752158451313,0.95319509,111210.0,111200.0,0.69618149]
[1752158451808,0.95319509,111210.0,111200.0,0.68017149]
[1752158452010,1.16515459,111210.0,111200.0,0.45406589]
[1752158452208,1.19615459,111210.0,111200.0,0.45406589]
[1752158453308,1.50190968,111210.0,111200.0,0.45406589]
[1752158453816,1.50190968,111210.0,111200.0,0.43879589]
[1752158454208,1.50190968,111210.0,111200.0,0.3852]
[1752158454406,1.50190968,111210.0,111200.0,0.3618]
[1752158454617,1.50190968,111210.0,111200.0,0.40201802]
[1752158455011,1.50190968,111210.0,111200.0,0.001]
[1752158457722,1.50190968,111210.0,111200.0,0.3618]
[1752158458021,1.50190968,111210.0,111200.0,0.42608604]
[1752158458216,1.50190968,111210.0,111200.0,0.38587]
[1752158459323,1.50190968,111210.0,111200.0,0.3618]
[1752158459821,1.50190968,111210.0,111200.0,0.001]
[1752158461126,0.8903995,111210.0,111200.0,0.001]
[1752158461321,1.50190968,111210.0,111200.0,0.001]
[1752158461518,1.50190968,111210.0,111200.0,0.02507]
[1752158461725,1.50190968,111210.0,111200.0,0.001]
[1752158465624,1.50190968,111210.0,111200.0,0.02507]
[1752158466325,1.50190968,111210.0,111200.0,0.001]
[1752158466726,0.1797757,111200.0,111190.0,0.04021604]
[1752158466930,0.1797919,111190.0,111180.0,0.42508604]
[1752158467129,0.1798081,111180.0,111170.0,0.42508604]
[1752158467330,0.85411828,111180.0,111170.0,0.38487]
[1752158467925,0.87311165,111180.0,111170.0,0.38487]
[1752158468529,0.87311165,111180.0,111170.0,0.38987]
[1752158469535,0.87834334,111180.0,111170.0,0.39387]
[1752158470425,0.94890257,111180.0,111170.0,0.39387]
[1752158471933,0.94890257,111180.0,111170.0,0.03307]
[1752158472137,0.94890257,111180.0,111170.0,0.009]
[1752158472742,0.94890257,111180.0,111170.0,0.03307]
[1752158474235,0.94890257,111180.0,111170.0,0.39387]
[1752158475333,0.94890257,111180.0,111170.0,0.03307]
[1752158475533,0.94890257,111180.0,111170.0,0.39387]
[1752158476042,0.94890257,111180.0,111170.0,0.42637]
[1752158478139,0.94890257,111180.0,111170.0,0.39387]
[1752158478543,0.9484372,111180.0,111170.0,0.39387]
[1752158478843,0.9484372,111180.0,111170.0,0.03307]
[1752158481540,0.9484372,111180.0,111170.0,0.39387]
[1752158481945,0.9299092,111180.0,111170.0,0.39387]
[1752158482145,0.94871408,111180.0,111170.0,0.03307]
[1752158483445,0.94871408,111180.0,111170.0,0.009]
[1752158484344,0.94871408,111180.0,111170.0,0.0335]
[1752158486850,0.94871408,111180.0,111170.0,0.4266]
[1752158487350,0.91741408,111180.0,111170.0,0.4266]
[1752158487537,0.91741408,111180.0,111170.0,0.4597]
[1752158487743,0.01852515,111180.0,111170.0,0.96153939]
[1752158487955,0.09509941,111210.0,111200.0,0.01626]
[1752158488139,0.6255578,111210.0,111200.0,0.07386]
[1752158488343,1.2701178,111210.0,111200.0,0.07386]
[1752158488645,1.2701178,111210.0,111200.0,0.43466]
[1752158488646,1.34293624,111210.0,111200.0,0.43466]
[1752158489250,1.36203303,111210.0,111200.0,0.43466]
[1752158489855,0.58268483,111210.0,111200.0,0.6144358]
[1752158490051,1.14901148,111210.0,111200.0,0.43566]
[1752158490348,1.45476657,111210.0,111200.0,0.43566]
[1752158490742,1.14901148,111210.0,111200.0,0.43566]
[1752158491151,1.14901148,111210.0,111200.0,0.46756]
[1752158491449,1.45476657,111210.0,111200.0,0.46756]
[1752158492660,1.53138209,111210.0,111200.0,0.46756]
[1752158492954,1.46011441,111210.0,111200.0,0.46756]
[1752158495357,1.52491441,111210.0,111200.0,0.46756]
[1752158495545,1.88571441,111210.0,111200.0,0.0255]
[1752158495743,1.88571441,111210.0,111200.0,0.001]
[1752158495950,0.88051441,111210.0,111200.0,0.40256]
[1752158496152,1.45963441,111210.0,111200.0,0.40256]
[1752158496358,1.45963441,111210.0,111200.0,0.46646]
[1752158497155,1.53205013,111210.0,111200.0,0.46646]
[1752158499152,1.53153449,111210.0,111200.0,0.46646]
[1752158499856,1.53153449,111210.0,111200.0,0.0255]
[1752158500058,1.56293449,111210.0,111200.0,0.0255]
[1752158500256,1.59563449,111210.0,111200.0,0.0255]
[1752158503253,1.59552821,111210.0,111200.0,0.0255]
[1752158505165,1.56226821,111210.0,111200.0,0.40256]
[1752158505462,1.56226821,111210.0,111200.0,0.46786]
[1752158506556,1.56226821,111210.0,111200.0,0.0584]
[1752158506761,1.59486821,111210.0,111200.0,0.0584]
[1752158508966,0.33999803,111210.0,111200.0,0.43546]
[1752158509159,1.56190821,111210.0,111200.0,0.46766]
[1752158509854,1.53050821,111210.0,111200.0,0.46766]
[1752158511766,1.56160821,111210.0,111200.0,0.46766]
[1752158511966,1.53050821,111210.0,111200.0,0.46766]
[1752158513365,1.59310821,111210.0,111200.0,0.0255]
[1752158520071,1.59310821,111210.0,111200.0,0.001]
[1752158521570,1.67395931,111210.0,111200.0,0.0243]
[1752158522469,1.59310821,111210.0,111200.0,0.0243]
[1752158523773,1.67395931,111210.0,111200.0,0.0243]
[1752158524470,1.59310821,111210.0,111200.0,0.0243]
[1752158524772,1.59310821,111210.0,111200.0,0.04037]
[1752158525168,1.59310821,111210.0,111200.0,0.0243]
[1752158528479,0.1797769,111200.0,111190.0,0.42411625]
[1752158528779,1.21328708,111200.0,111190.0,0.04001625]
[1752158528979,0.1797931,111190.0,111180.0,0.07689589]
[1752158529180,1.85510328,111190.0,111180.0,0.0233]
[1752158530477,1.85510328,111190.0,111180.0,0.0273]
[1752158531771,1.85510328,111190.0,111180.0,0.0303]
[1752158532167,0.51594819,111190.0,111180.0,0.04637]
[1752158532373,1.12718819,111190.0,111180.0,0.47237]
[1752158533882,0.8214331,111190.0,111180.0,0.47237]
[1752158534176,1.12718819,111190.0,111180.0,0.47237]
[1752158535586,1.12710819,111190.0,111180.0,0.47237]
[1752158536086,0.48554819,111190.0,111180.0,0.47237]
[1752158536284,1.12698819,111190.0,111180.0,0.6521792]
[1752158536585,1.12698819,111190.0,111180.0,0.47237]
[1752158536978,1.12698819,111190.0,111180.0,0.6521793]
[1752158537283,0.48554819,111190.0,111180.0,0.6521793]
[1752158537488,1.12698819,111190.0,111180.0,0.6521793]
[1752158537690,0.1797931,111190.0,111180.0,0.95793439]
[1752158537887,0.8211531,111190.0,111180.0,0.6521793]
[1752158538283,1.12690819,111190.0,111180.0,0.6521793]
[1752158538584,0.8211531,111190.0,111180.0,0.6521793]
[1752158539588,0.8211531,111190.0,111180.0,0.47237]
[1752158539780,0.8211531,111190.0,111180.0,0.6521793]
[1752158544888,0.8211531,111190.0,111180.0,0.70577519]
[1752158545290,0.8207931,111190.0,111180.0,0.70577519]
[1752158545690,1.12654819,111190.0,111180.0,0.70577519]
[1752158545885,1.12654819,111190.0,111180.0,0.6521793]
[1752158546287,0.8207131,111190.0,111180.0,0.6521793]
[1752158547182,0.1797931,111190.0,111180.0,0.6521793]
[1752158547377,0.63905093,111200.0,111190.0,0.1797931]
[1752158547584,0.54915613,111200.0,111190.0,0.6464131]
[1752158547791,1.18995613,111200.0,111190.0,0.6464131]
[1752158548889,1.18995613,111200.0,111190.0,0.6484131]
[1752158549492,1.18995613,111200.0,111190.0,0.6494131]
[1752158553798,1.18995613,111200.0,111190.0,0.40502]
[1752158554001,1.25465613,111200.0,111190.0,0.5848131]
[1752158554394,1.25465613,111200.0,111190.0,0.6496131]
[1752158556593,1.22135613,111200.0,111190.0,0.6496131]
[1752158557890,1.18995613,111200.0,111190.0,0.6496131]
[1752158558897,1.18931613,111200.0,111190.0,0.6496131]
[1752158559601,1.18919613,111200.0,111190.0,0.6496131]
[1752158559803,0.54915613,111200.0,111190.0,0.6496131]
[1752158560003,1.21949613,111200.0,111190.0,0.40502]
[1752158560187,1.55795122,111200.0,111190.0,0.3886]
[1752158560393,1.91875122,111200.0,111190.0,0.003]
[1752158561699,1.91875122,111200.0,111180.0,0.3608]
[1752158561700,0.1797931,111190.0,111180.0,0.3608]
[1752158561895,0.85390328,111190.0,111180.0,0.3608]
[1752158563501,0.85390328,111190.0,111180.0,0.3638]
[1752158563702,0.85390328,111190.0,111180.0,0.3886]
[1752158563902,0.54814819,111190.0,111180.0,0.3886]
[1752158564102,0.54814819,111190.0,111180.0,0.3916]
[1752158565600,0.85390328,111190.0,111180.0,0.3916]
[1752158568199,0.54814819,111190.0,111180.0,0.3916]
[1752158568700,1.18774819,111190.0,111180.0,0.3916]
[1752158569605,1.18774819,111190.0,111180.0,0.40743]
[1752158570710,1.49350328,111190.0,111180.0,0.40743]
[1752158571604,1.49350328,111190.0,111180.0,0.3916]
[1752158572204,1.18774819,111190.0,111180.0,0.40743]
[1752158572806,0.54814819,111190.0,111180.0,0.40743]
[1752158573003,1.18754819,111190.0,111180.0,0.40743]
[1752158573197,0.2423931,111190.0,111180.0,0.6486392]
[1752158573402,0.1797931,111190.0,111180.0,0.6486392]
[1752158573611,0.49186433,111200.0,111180.0,0.7137397]
[1752158573803,0.59410903,111200.0,111190.0,0.641853]
[1752158574009,1.23342903,111200.0,111190.0,0.46206]
[1752158575109,1.23334903,111200.0,111190.0,0.46306]
[1752158575510,1.23334903,111200.0,111190.0,0.46406]
[1752158575807,1.26637384,111200.0,111190.0,0.46406]
[1752158576712,0.62713384,111200.0,111190.0,0.46406]
[1752158576913,1.26637384,111200.0,111190.0,0.46406]
[1752158578715,1.26629384,111200.0,111190.0,0.6438532]
[1752158579120,1.26629384,111200.0,111190.0,0.46406]
[1752158580022,0.62713384,111200.0,111190.0,0.46406]
[1752158580215,1.26617384,111200.0,111190.0,0.46406]
[1752158581722,1.32847384,111200.0,111190.0,0.46406]
[1752158583124,1.32847384,111200.0,111190.0,0.38683]
[1752158583319,1.32847384,111200.0,111190.0,0.04186]
[1752158585418,0.41974814,111200.0,111190.0,0.40266]
[1752158585619,0.2314295,111200.0,111190.0,0.88820829]
[1752158585822,0.8700695,111200.0,111190.0,0.95250829]
[1752158586220,1.17582459,111200.0,111190.0,0.46696]
[1752158586725,1.17582459,111200.0,111190.0,0.6467531]
[1752158589324,2.36559929,111200.0,111170.0,0.08040314]
[1752158589527,0.1798255,111170.0,111160.0,0.02751913]
[1752158589723,0.59940645,111170.0,111160.0,0.04334913]
[1752158589923,0.24500976,111170.0,111160.0,0.88974592]
[1752158590229,0.21280976,111170.0,111160.0,0.88974592]
[1752158590522,0.21280926,111170.0,111160.0,0.40414913]
[1752158590725,0.87936435,111170.0,111160.0,0.04334913]
[1752158590926,1.02005115,111170.0,111160.0,0.04334913]
[1752158591119,1.65841115,111170.0,111160.0,0.04334913]
[1752158591321,0.24500926,111170.0,111160.0,0.22319033]
[1752158591516,0.21480926,111170.0,111160.0,0.60573222]
[1752158591725,0.21480926,111170.0,111160.0,0.22319033]
[1752158593124,0.21480926,111170.0,111160.0,0.58399033]
[1752158593529,0.21380926,111170.0,111160.0,0.58399033]
[1752158594528,0.21380926,111170.0,111160.0,0.28499033]
[1752158595030,0.24380926,111170.0,111160.0,0.28499033]
[1752158596133,0.24380926,111170.0,111160.0,0.64579033]
[1752158596532,0.21380926,111170.0,111160.0,0.64579033]
[1752158597938,0.21380926,111170.0,111160.0,0.28499033]
[1752158600236,0.24510926,111170.0,111160.0,0.28499033]
[1752158601637,0.24510926,111170.0,111160.0,0.64579033]
[1752158601940,0.21380906,111170.0,111160.0,1.02833222]
[1752158602442,0.21380906,111170.0,111160.0,0.64579033]
[1752158604844,0.03398426,111170.0,111160.0,0.64579033]
[1752158605045,0.21380906,111170.0,111160.0,0.64579033]
[1752158605744,0.03398426,111170.0,111160.0,1.02833222]
[1752158605947,0.1808248,111170.0,111160.0,1.02833222]
[1752158606145,0.21380906,111170.0,111160.0,1.02833222]
[1752158606442,0.03398426,111170.0,111160.0,1.02833222]
[1752158606749,0.001,111170.0,111160.0,1.02833222]
[1752158607546,0.1808248,111170.0,111160.0,0.64579033]
[1752158607746,0.1808248,111170.0,111160.0,1.02833222]
[1752158608951,0.1808248,111170.0,111160.0,0.64579033]
[1752158609153,0.21720526,111170.0,111160.0,0.64579033]
[1752158612952,0.21720526,111170.0,111160.0,0.95169554]
[1752158615152,0.88391047,111170.0,111160.0,0.04334913]
[1752158615451,0.94741047,111170.0,111160.0,0.04334913]
[1752158615955,0.96587533,111170.0,111160.0,0.02751913]
[1752158616457,0.96587533,111170.0,111160.0,0.00348913]
[1752158618856,1.60295533,111170.0,111160.0,0.02748913]
[1752158619055,0.65997012,111170.0,111160.0,0.22398013]
[1752158619254,1.60295533,111170.0,111160.0,0.04413913]
[1752158619762,1.60295533,111170.0,111160.0,0.22398013]
[1752158620865,1.67953565,111170.0,111160.0,0.22398013]
[1752158621154,1.29705012,111170.0,111160.0,0.04413913]
[1752158621351,1.04245565,111170.0,111160.0,0.04413913]
[1752158621550,1.67945565,111170.0,111160.0,0.04413913]
[1752158622360,1.04245565,111170.0,111160.0,0.04413913]
[1752158622562,1.67945565,111170.0,111160.0,0.04413913]
[1752158622959,1.04245565,111170.0,111160.0,0.22398013]
[1752158623155,1.04245565,111170.0,111160.0,0.04413913]
[1752158623156,1.67941565,111170.0,111160.0,0.04413913]
[1752158624962,1.04245565,111170.0,111160.0,0.04413913]
[1752158625264,1.67941565,111170.0,111160.0,0.04413913]
[1752158626961,1.04245565,111170.0,111160.0,0.04413913]
[1752158627262,1.67933565,111170.0,111160.0,0.04413913]
[1752158627965,1.04245565,111170.0,111160.0,0.04413913]
[1752158628156,1.67921565,111170.0,111160.0,0.04413913]
[1752158630763,1.67921565,111170.0,111160.0,0.02748913]
[1752158631160,1.67921565,111170.0,111160.0,0.00348913]
[1752158636264,2.24161319,111170.0,111160.0,3e-08]
[1752158636570,2.24161319,111170.0,111150.0,0.00179929]
[1752158636571,0.1798411,111160.0,111150.0,0.00179929]
[1752158636868,2.04235262,111160.0,111150.0,0.00179929]
[1752158637060,2.12319422,111160.0,111150.0,0.00179929]
[1752158637260,2.04235262,111160.0,111150.0,0.00179929]
[1752158637459,2.12319422,111160.0,111150.0,0.00179929]
[1752158637862,2.12319422,111160.0,111150.0,0.00279929]
[1752158638862,2.12319422,111160.0,111150.0,0.00179929]
[1752158639064,1.36122316,111160.0,111150.0,0.00279929]
[1752158639269,2.12619422,111160.0,111150.0,0.00279929]
[1752158639473,2.19741642,111160.0,111150.0,0.00279929]
[1752158639764,0.1798733,111140.0,111130.0,0.02485]
[1752158639972,1.59577929,111140.0,111130.0,0.02485]
[1752158640166,1.66097929,111140.0,111130.0,0.02485]
[1752158640568,1.66809779,111140.0,111130.0,0.02485]
[1752158640874,1.59182511,111140.0,111130.0,0.02485]
[1752158641066,1.59182511,111140.0,111130.0,0.02585]
[1752158642971,1.59174511,111140.0,111130.0,0.04157]
[1752158644172,0.59478511,111140.0,111130.0,0.04157]
[1752158644479,1.59166511,111140.0,111130.0,0.04157]
[1752158644972,1.59166511,111140.0,111130.0,0.02585]
[1752158645172,0.95558511,111140.0,111130.0,0.02585]
[1752158645374,1.59162511,111140.0,111130.0,0.02585]
[1752158645873,0.95558511,111140.0,111130.0,0.02585]
[1752158646074,1.59162511,111140.0,111130.0,0.02585]
[1752158646273,1.59158511,111140.0,111130.0,0.02585]
[1752158650772,0.64937226,111140.0,111130.0,0.02585]
[1752158651082,1.59138511,111140.0,111130.0,0.02585]
[1752158651572,0.95558511,111140.0,111130.0,0.02585]
[1752158651769,1.59138511,111140.0,111130.0,0.02585]
[1752158653975,1.59126511,111140.0,111130.0,0.02585]
[1752158654872,0.95558511,111140.0,111130.0,0.02585]
[1752158655072,1.59122511,111140.0,111130.0,0.02585]
[1752158656373,0.21625376,111140.0,111130.0,0.88847255]
[1752158656578,0.85181376,111140.0,111130.0,0.95207255]
[1752158656779,0.21625376,111140.0,111130.0,0.95207255]
[1752158657677,0.21625376,111140.0,111130.0,0.6458597]
[1752158660272,0.52246661,111140.0,111130.0,0.46597]
[1752158660679,0.52246661,111140.0,111130.0,0.10517]
[1752158660876,0.88326661,111140.0,111130.0,0.10517]
[1752158661882,0.21625396,111140.0,111130.0,1.13203245]
[1752158662475,0.21625396,111140.0,111130.0,0.8258196]
[1752158662682,0.21625396,111140.0,111130.0,1.13203245]
[1752158663285,0.03638046,111140.0,111130.0,1.13203245]
[1752158663581,0.3147706,111150.0,111140.0,0.23849378]
[1752158663788,0.34931854,111150.0,111140.0,0.97130663]
[1752158664275,0.30435074,111150.0,111140.0,0.97842408]
[1752158664475,0.30435074,111150.0,111140.0,1.61358408]
[1752158664675,0.25938374,111150.0,111140.0,1.61358408]
[1752158664875,0.26138374,111150.0,111140.0,1.79352808]
[1752158665784,0.26038374,111150.0,111140.0,1.79352808]
[1752158665985,0.26038374,111150.0,111140.0,1.79452808]
[1752158667387,0.25938374,111150.0,111140.0,1.79452808]
[1752158669187,0.2248358,111150.0,111140.0,1.79452808]
[1752158671484,0.2248358,111150.0,111140.0,2.15532808]
[1752158672692,0.1798702,111150.0,111140.0,2.15532808]
[1752158673784,0.1798702,111150.0,111140.0,1.66917123]
[1752158673986,0.1798702,111150.0,111140.0,1.97538408]
[1752158679598,0.3453417,111160.0,111150.0,0.2212873]
[1752158679800,0.37941907,111160.0,111150.0,0.6478873]
[1752158680298,0.40961907,111160.0,111150.0,0.6478873]
[1752158680593,0.71683192,111160.0,111150.0,0.04143]
[1752158680794,0.71683192,111160.0,111150.0,0.67575]
[1752158681194,1.45705518,111160.0,111150.0,0.04143]
[1752158681401,0.1798573,111150.0,111140.0,0.05962028]
[1752158681704,1.25216037,111150.0,111140.0,0.05962028]
[1752158682503,0.63973467,111150.0,111140.0,0.23949378]
[1752158682701,1.25216037,111150.0,111140.0,0.23949378]
[1752158683000,0.94594752,111150.0,111140.0,0.23849378]
[1752158683596,0.94594752,111150.0,111140.0,0.23949378]
[1752158684399,1.27119268,111150.0,111140.0,0.04299028]
[1752158684605,1.27219268,111150.0,111140.0,0.04299028]
[1752158686897,1.27219268,111150.0,111140.0,0.0258]
[1752158687103,1.27219268,111150.0,111140.0,0.001]
[1752158688006,0.1798732,111140.0,111130.0,0.0248]
[1752158688207,0.58496342,111140.0,111130.0,0.0248]
[1752158689710,0.58496342,111140.0,111130.0,0.2214395]
[1752158690102,0.58496342,111140.0,111130.0,0.04155]
[1752158691005,0.27875057,111140.0,111130.0,0.2214395]
[1752158691210,0.27875067,111140.0,111130.0,0.88845235]
[1752158691603,0.27875067,111140.0,111130.0,0.5822395]
[1752158692009,0.58496352,111140.0,111130.0,0.5822395]
[1752158694211,0.27875067,111140.0,111130.0,0.5822395]
[1752158694405,0.58496352,111140.0,111130.0,0.5822395]
[1752158697606,0.58496352,111140.0,111130.0,0.2214395]
[1752158699816,0.58496352,111140.0,111130.0,0.5822395]
[1752158700410,0.58496352,111140.0,111130.0,0.04155]
[1752158700612,0.58496352,111140.0,111130.0,0.0258]
[1752158700817,1.57916352,111140.0,111130.0,0.0258]
[1752158701215,1.57916352,111140.0,111130.0,0.001]
[1752158704621,1.88537637,111140.0,111130.0,0.001]
[1752158704818,1.57916352,111140.0,111130.0,0.001]
[1752158705825,1.65992226,111140.0,111130.0,0.001]
[1752158706218,1.65992226,111140.0,111130.0,0.02527]
[1752158706419,1.57916352,111140.0,111130.0,0.02527]
[1752158706826,1.65992226,111140.0,111130.0,0.02527]
[1752158707324,1.57916352,111140.0,111130.0,0.02527]
[1752158709427,1.27295067,111140.0,111130.0,0.02527]
[1752158709724,1.57916352,111140.0,111130.0,0.02527]
[1752158710526,1.57876352,111140.0,111130.0,0.2209095]
[1752158710725,1.21796352,111140.0,111130.0,0.2209095]
[1752158711321,0.58496352,111140.0,111130.0,0.2209095]
[1752158711621,0.24585067,111140.0,111130.0,0.5817095]
[1752158711826,0.55206352,111140.0,111130.0,0.2520095]
[1752158712026,0.55206352,111140.0,111130.0,0.2825095]
[1752158712532,1.18498352,111140.0,111130.0,0.6433095]
[1752158712828,1.18498352,111140.0,111130.0,0.2825095]
[1752158713239,1.18498352,111140.0,111130.0,0.10262]
[1752158713421,1.18498352,111140.0,111130.0,0.2825095]
[1752158713827,1.18498352,111140.0,111130.0,0.10262]
[1752158714028,1.18498352,111140.0,111130.0,0.2825095]
[1752158714935,1.18498352,111140.0,111130.0,0.10262]
[1752158717236,1.21578352,111140.0,111130.0,0.10262]
[1752158717831,0.90957067,111140.0,111130.0,0.2825097]
[1752158718030,1.21578352,111140.0,111130.0,0.07152]
[1752158718231,1.21578352,111140.0,111130.0,0.04102]
[1752158720240,1.21578352,111140.0,111130.0,0.2209097]
[1752158720832,1.21578352,111140.0,111130.0,0.04102]
[1752158727749,1.57658352,111140.0,111130.0,0.04102]
[1752158728151,0.90957067,111140.0,111130.0,0.2209097]
[1752158728350,1.21578352,111140.0,111130.0,0.2209097]
[1752158729149,1.21535521,111140.0,111130.0,0.2209097]
[1752158729850,0.58243521,111140.0,111130.0,0.2209097]
[1752158730154,0.84556256,111140.0,111130.0,0.91942255]
[1752158730341,0.84556256,111140.0,111130.0,0.94982255]
[1752158730542,0.84556256,111140.0,111130.0,0.6436097]
[1752158730744,1.15177541,111140.0,111130.0,0.6436097]
[1752158731546,1.15177541,111140.0,111130.0,0.5817097]
[1752158731751,1.21357541,111140.0,111130.0,0.04102]
[1752158736252,1.21357541,111140.0,111130.0,0.2209097]
[1752158736452,1.21357541,111140.0,111130.0,0.04102]
[1752158738556,1.21357541,111140.0,111130.0,0.2209097]
[1752158739146,1.21357541,111140.0,111130.0,0.04102]
[1752158740655,1.21357541,111140.0,111130.0,0.2209097]
[1752158740854,1.21357541,111140.0,111130.0,0.04102]
[1752158741057,1.21357541,111140.0,111130.0,0.2209097]
[1752158742158,1.21357541,111140.0,111130.0,0.04102]
[1752158742558,1.21357541,111140.0,111130.0,0.2209097]
[1752158743254,1.21357541,111140.0,111130.0,0.5817097]
[1752158743657,1.21357541,111140.0,111130.0,0.04102]
[1752158743857,1.21357541,111140.0,111130.0,0.2209097]
[1752158744358,1.21357541,111140.0,111130.0,0.5817097]
[1752158747358,1.21357541,111140.0,111130.0,0.40182]
[1752158748356,1.21357541,111140.0,111130.0,0.04102]
[1752158748859,1.21357541,111140.0,111130.0,0.2209097]
[1752158749554,1.21357541,111140.0,111130.0,0.04102]
[1752158750162,0.66488906,111140.0,111130.0,0.88792255]
[1752158750361,0.21352256,111140.0,111130.0,0.95092255]
[1752158750957,0.21352256,111140.0,111130.0,0.6447097]
[1752158751353,0.03364906,111140.0,111130.0,0.6447097]
[1752158751553,0.21352256,111140.0,111130.0,0.6447097]
[1752158754065,0.51973541,111140.0,111130.0,0.6447097]
[1752158754256,0.51973541,111140.0,111130.0,0.46482]
[1752158754456,0.58123541,111140.0,111130.0,0.2209097]
[1752158754752,0.58123541,111140.0,111130.0,0.04102]
[1752158755660,0.58123541,111140.0,111130.0,0.001]
[1752158755862,1.24824826,111140.0,111130.0,0.001]
[1752158756063,1.329007,111140.0,111130.0,0.001]
[1752158756564,0.1798897,111130.0,111120.0,0.00179978]
[1752158756866,1.97901794,111130.0,111120.0,0.00179978]
[1752158757260,1.97895071,111130.0,111120.0,0.00179978]
[1752158757858,1.97895071,111130.0,111120.0,0.00279978]
[1752158758160,1.89805192,111130.0,111120.0,0.00279978]
[1752158758367,1.97890454,111130.0,111120.0,0.00279978]
[1752158760664,1.97890454,111130.0,111120.0,0.00479978]
[1752158761472,1.97890454,111130.0,111120.0,0.00279978]
[1752158764465,0.1799055,111120.0,111110.0,0.00179994]
[1752158764664,1.24918026,111120.0,111110.0,0.00179994]
[1752158765965,1.42917226,111120.0,111110.0,0.00179994]
[1752158766865,1.24918026,111120.0,111110.0,0.00179994]
[1752158767072,1.33003288,111120.0,111110.0,0.00179994]
[1752158767372,1.24918026,111120.0,111110.0,0.00179994]
[1752158769066,1.2507474,111120.0,111110.0,0.00179994]
[1752158769372,1.2517474,111120.0,111110.0,0.00179994]
[1752158769772,0.1799378,111100.0,111090.0,0.0249]
[1752158769973,2.46670096,111100.0,111090.0,0.0249]
[1752158770272,2.52930096,111100.0,111090.0,0.0249]
[1752158771264,1.23176811,111100.0,111090.0,0.04126]
[1752158771672,1.23176811,111100.0,111090.0,0.10666]
[1752158771976,1.59212727,111100.0,111090.0,0.10666]
[1752158772273,1.59212727,111100.0,111090.0,0.11066]
[1752158772475,1.66422449,111100.0,111090.0,0.10766]